bitfinex/quotes_ETHUSD_20240922
["timestamp","ask_amount","ask_price","bid_price","bid_amount"]
[1727006187900,1.38237846,2585.1,2585.0,5.0]
[1727006188404,1.7885516,2585.1,2585.0,5.0]
[1727006190187,1.7885516,2585.1,2584.9,0.142]
[1727006190701,1.21810434,2585.0,2584.9,0.142]
[1727006190877,1.38263211,2585.0,2584.9,0.142]
[1727006191486,1.7874329,2585.0,2584.9,0.142]
[1727006195316,0.16452777,2585.0,2584.9,0.142]
[1727006195514,1.79021978,2585.0,2584.9,0.142]
[1727006196136,1.79022244,2585.0,2584.9,0.142]
[1727006196701,0.16452777,2585.0,2584.9,0.142]
[1727006196903,1.79021338,2585.0,2584.9,0.142]
[1727006200948,2.19663419,2585.0,2584.9,0.142]
[1727006201309,0.16452777,2585.0,2584.9,0.142]
[1727006201651,2.19663419,2585.0,2584.9,0.142]
[1727006204692,0.16452777,2585.0,2584.9,0.142]
[1727006205048,2.19663419,2585.0,2584.9,0.142]
[1727006207481,2.66183761,2585.0,2584.9,0.142]
[1727006209890,2.19663419,2585.0,2584.9,0.142]
[1727006212240,2.1968096,2585.0,2584.9,0.142]
[1727006214743,2.19683083,2585.0,2584.9,0.142]
[1727006220937,2.19699219,2585.0,2584.9,0.142]
[1727006225511,0.16452777,2585.0,2584.9,0.142]
[1727006225714,2.03242188,2585.0,2584.9,0.142]
[1727006225916,2.19700696,2585.0,2584.9,0.142]
[1727006226115,0.16458508,2585.0,2584.9,4.01062]
[1727006226337,1.7904302,2585.0,2584.9,4.01062]
[1727006228434,1.79036987,2585.0,2584.9,0.142]
[1727006228636,1.79035848,2585.0,2584.9,0.142]
[1727006232328,1.79032439,2585.0,2584.9,0.142]
[1727006232524,2.19673942,2585.0,2584.9,0.142]
[1727006233326,0.16458508,2585.0,2584.9,0.142]
[1727006233935,2.19673942,2585.0,2584.9,0.142]
[1727006234508,0.16458508,2585.0,2584.9,0.142]
[1727006235687,2.19676896,2585.0,2584.9,0.142]
[1727006236020,2.65111586,2585.0,2584.9,0.142]
[1727006238531,0.61893198,2585.0,2584.9,0.142]
[1727006239197,2.65118588,2585.0,2584.9,0.142]
[1727006240539,2.65110038,2585.0,2584.9,0.142]
[1727006241263,0.61893198,2585.0,2584.9,0.142]
[1727006241644,2.65106955,2585.0,2584.9,0.142]
[1727006245654,2.65097953,2585.0,2584.9,0.142]
[1727006245808,0.61893198,2585.0,2584.9,0.142]
[1727006246006,6.86860198,2585.0,2584.9,0.142]
[1727006246266,9.30705904,2585.0,2584.9,0.142]
[1727006247052,6.86860198,2585.0,2584.9,0.142]
[1727006247259,9.85637464,2585.0,2584.9,0.142]
[1727006247551,7.41860198,2585.0,2584.9,0.142]
[1727006248346,9.85594484,2585.0,2584.9,0.142]
[1727006250556,9.85526084,2585.0,2584.9,0.142]
[1727006254295,7.41860198,2585.0,2584.9,0.142]
[1727006256373,10.26008174,2585.0,2584.9,0.142]
[1727006256594,7.41860198,2585.0,2584.9,0.142]
[1727006256764,10.26008174,2585.0,2584.9,0.142]
[1727006257099,7.41860198,2585.0,2584.9,0.142]
[1727006260892,9.852477,2585.0,2584.9,0.142]
[1727006261392,9.85224239,2585.0,2584.9,0.142]
[1727006262701,9.85202548,2585.0,2584.9,0.142]
[1727006264777,7.41860198,2585.0,2584.9,0.142]
[1727006265202,9.85168315,2585.0,2584.9,0.142]
[1727006265606,9.85153165,2585.0,2584.9,0.142]
[1727006266919,9.85146747,2585.0,2584.9,0.142]
[1727006270479,7.41860198,2585.0,2584.9,0.142]
[1727006270685,9.85109672,2585.0,2584.9,0.142]
[1727006274863,9.85122407,2585.0,2584.9,0.14105171]
[1727006275173,3.86892,2584.7,2584.6,0.0200901]
[1727006275359,6.06036618,2584.7,2584.6,0.0200901]
[1727006275661,6.8891516,2584.7,2584.6,0.0200901]
[1727006279270,6.0603806,2584.7,2584.6,0.0200901]
[1727006279594,1.38072468,2584.7,2584.6,2.6168901]
[1727006279911,0.16415266,2584.7,2584.6,2.6168901]
[1727006280109,1.38072468,2584.7,2584.6,2.6168901]
[1727006280263,1.21657202,2584.7,2584.6,2.6168901]
[1727006280470,1.37516637,2584.7,2584.6,2.6168901]
[1727006285309,0.15859435,2584.7,2584.6,2.6168901]
[1727006285511,1.37570968,2584.7,2584.6,2.6168901]
[1727006287215,1.78080574,2584.7,2584.6,2.6168901]
[1727006287711,0.15859435,2584.7,2584.6,2.6168901]
[1727006287913,1.78080574,2584.7,2584.6,2.6168901]
[1727006288209,1.62221139,2584.7,2584.6,2.6168901]
[1727006288372,1.78080574,2584.7,2584.6,2.6168901]
[1727006288710,1.78080574,2584.7,2584.6,0.1600901]
[1727006288711,2.95405208,2584.7,2584.6,0.1600901]
[1727006288874,0.9263183,2584.7,2584.6,0.1600901]
[1727006289584,2.95592398,2584.7,2584.6,0.1600901]
[1727006289893,6.82484398,2584.7,2584.6,0.1600901]
[1727006291217,4.7952383,2584.7,2584.6,0.1600901]
[1727006293442,4.02751435,2584.7,2584.6,0.1600901]
[1727006294013,6.05854218,2584.7,2584.6,0.1600901]
[1727006294241,4.02751435,2584.7,2584.6,0.1600901]
[1727006294550,0.15859435,2584.7,2584.6,0.1600901]
[1727006294722,2.18970608,2584.7,2584.6,0.1600901]
[1727006294926,2.03111173,2584.7,2584.6,0.1600901]
[1727006295121,2.18975368,2584.7,2584.6,0.1600901]
[1727006299553,2.18993699,2584.7,2584.6,0.1600901]
[1727006303261,3.03956309,2584.7,2584.6,0.1600901]
[1727006303458,3.03951725,2584.7,2584.6,0.1600901]
[1727006303611,1.00826805,2584.7,2584.6,0.1600901]
[1727006306353,4.87718805,2584.7,2584.6,0.1600901]
[1727006307454,1.00826805,2584.7,2584.6,0.1600901]
[1727006307664,3.03950588,2584.7,2584.6,0.1600901]
[1727006307966,3.03945874,2584.7,2584.6,0.1600901]
[1727006308334,1.00826805,2584.7,2584.6,0.1600901]
[1727006308574,3.03946468,2584.7,2584.6,0.1600901]
[1727006308745,1.00826805,2584.7,2584.6,0.1600901]
[1727006309773,3.03946536,2584.7,2584.6,0.1600901]
[1727006309932,1.00826805,2584.7,2584.6,0.1600901]
[1727006310133,3.03947359,2584.7,2584.6,0.1600901]
[1727006310566,1.00826805,2584.7,2584.6,0.1600901]
[1727006311560,3.03946446,2584.7,2584.6,0.1600901]
[1727006311743,1.00826805,2584.7,2584.6,0.1600901]
[1727006312047,3.03943518,2584.7,2584.6,0.1600901]
[1727006312977,3.03950059,2584.7,2584.6,0.1600901]
[1727006313838,3.0395167,2584.7,2584.6,0.1600901]
[1727006314475,1.00826805,2584.7,2584.6,0.1600901]
[1727006314633,2.18990434,2584.7,2584.6,0.1600901]
[1727006317280,0.15864195,2584.7,2584.6,0.1600901]
[1727006317794,3.86877,2584.8,2584.6,0.1600901]
[1727006318078,0.15557175,2584.7,2584.6,0.1600901]
[1727006318683,3.86877,2584.8,2584.6,0.1600901]
[1727006318989,0.78620024,2584.7,2584.6,0.1600901]
[1727006321010,2.81775225,2584.7,2584.6,0.1600901]
[1727006321176,0.78620024,2584.7,2584.6,0.1600901]
[1727006322450,4.65512024,2584.7,2584.6,0.1600901]
[1727006326068,0.78620024,2584.7,2584.6,0.1600901]
[1727006328215,7.54032024,2584.7,2584.6,0.1600901]
[1727006337055,13.38338201,2584.7,2584.6,0.1600901]
[1727006337343,10.54032024,2584.7,2584.6,0.1600901]
[1727006337634,13.89868695,2584.7,2584.6,0.1600901]
[1727006338038,10.54032024,2584.7,2584.6,0.1600901]
[1727006345514,13.37861917,2584.7,2584.6,0.1600901]
[1727006345855,10.54032024,2584.7,2584.6,0.1600901]
[1727006346419,13.37833364,2584.7,2584.6,0.1600901]
[1727006348156,13.37807798,2584.7,2584.6,0.1600901]
[1727006348854,13.37785636,2584.7,2584.6,0.1600901]
[1727006353166,13.3771892,2584.7,2584.6,0.1600901]
[1727006354974,10.54032024,2584.7,2584.6,0.1600901]
[1727006355158,13.3771892,2584.7,2584.6,0.1600901]
[1727006355934,10.54032024,2584.7,2584.6,0.1600901]
[1727006356535,13.3771892,2584.7,2584.6,0.1600901]
[1727006356734,10.3771892,2584.7,2584.6,0.1600901]
[1727006356936,7.63624668,2584.7,2584.6,0.1600901]
[1727006357132,5.20512024,2584.7,2584.6,0.1600901]
[1727006359542,7.63670146,2584.7,2584.6,0.1600901]
[1727006363183,5.20512024,2584.7,2584.6,0.1600901]
[1727006364186,7.63750991,2584.7,2584.6,2.6574901]
[1727006364481,7.6378219,2584.7,2584.6,2.6574901]
[1727006365053,5.20512024,2584.7,2584.6,2.6574901]
[1727006367394,5.20512024,2584.7,2584.6,0.1600901]
[1727006371701,8.0442985,2584.7,2584.6,0.1600901]
[1727006373273,5.20512024,2584.7,2584.6,0.1600901]
[1727006373477,8.04685307,2584.7,2584.6,0.1600901]
[1727006374417,5.20512024,2584.7,2584.6,0.1600901]
[1727006375369,8.04715214,2584.7,2584.6,0.1600901]
[1727006375574,5.20512024,2584.7,2584.6,0.1600901]
[1727006382321,5.20512024,2584.7,2583.8,0.0383901]
[1727006382322,3.87011,2583.9,2583.8,0.0383901]
[1727006382493,4.42011,2583.9,2583.8,0.0383901]
[1727006382691,4.57499466,2583.9,2583.8,0.0383901]
[1727006389453,7.00893615,2583.9,2583.8,0.0383901]
[1727006391017,6.45893615,2583.9,2583.8,0.0383901]
[1727006392057,4.02499466,2583.9,2583.8,0.0383901]
[1727006397333,5.05777644,2583.9,2583.8,2.0383901]
[1727006398355,0.15488466,2583.9,2583.8,2.0383901]
[1727006398562,2.1818806,2583.9,2583.8,2.0383901]
[1727006398857,0.15488466,2583.9,2583.8,2.0383901]
[1727006399366,1.77643551,2583.9,2583.8,4.3104901]
[1727006402541,5.64654551,2583.9,2583.8,4.3104901]
[1727006402946,7.20615161,2583.9,2583.8,2.0383901]
[1727006403374,7.20624939,2583.9,2583.8,2.0383901]
[1727006403578,7.20622689,2583.9,2583.8,2.0383901]
[1727006404590,7.20620924,2583.9,2583.8,2.0383901]
[1727006405107,5.17932943,2583.9,2583.8,2.0383901]
[1727006405858,7.54982943,2583.9,2583.8,2.0383901]
[1727006406062,8.09982943,2583.9,2583.8,2.0383901]
[1727006408975,10.53216642,2583.9,2583.8,2.0383901]
[1727006411609,5.17932943,2583.9,2583.8,2.0383901]
[1727006413099,3.8704,2583.8,2583.2,9.7575201]
[1727006413271,1.21633137,2583.5,2583.2,5.23785902]
[1727006413480,1.21633137,2583.5,2583.2,3.87113]
[1727006414300,1.21633137,2583.4,2583.2,3.87113]
[1727006416089,1.21633137,2583.4,2583.3,1.6649]
[1727006417311,1.21633137,2583.5,2583.3,1.6649]
[1727006417523,1.21633137,2583.5,2583.4,3.87086]
[1727006417727,1.21633137,2583.6,2583.4,5.53576]
[1727006418008,1.21633137,2583.6,2583.5,1.6649]
[1727006418796,1.21633137,2583.6,2583.5,1.5989]
[1727006419712,1.62177516,2583.7,2583.5,1.5989]
[1727006420422,1.21707909,2583.6,2583.5,5.4696]
[1727006420707,1.21707909,2583.7,2583.5,3.8707]
[1727006421404,1.21707909,2583.7,2583.4,3.94826681]
[1727006421602,1.21707909,2583.7,2583.4,4.34309349]
[1727006421836,1.21707909,2583.7,2583.6,1.5989]
[1727006422069,2.02881103,2583.9,2583.8,1.5989]
[1727006422070,1.21707909,2583.9,2583.8,1.5989]
[1727006422330,2.02881103,2584.2,2583.8,1.5989]
[1727006422331,1.21707909,2584.0,2583.8,1.5989]
[1727006422537,1.21707909,2584.1,2584.0,5.46886]
[1727006422848,1.62177516,2584.2,2584.0,5.46886]
[1727006423137,1.21705616,2584.1,2584.0,5.46886]
[1727006423890,1.21705616,2584.1,2584.0,1.5989]
[1727006425638,1.62177516,2584.1,2584.0,1.5989]
[1727006425831,1.62177516,2584.1,2583.7,3.87028]
[1727006425832,0.75201362,2584.1,2583.8,1.5989]
[1727006426043,1.21709575,2583.9,2583.8,1.5989]
[1727006426359,1.62279434,2584.0,2583.8,1.5989]
[1727006426847,1.62279434,2583.9,2583.8,1.5989]
[1727006436166,1.62279434,2583.9,2583.4,1.5989]
[1727006436371,1.21726947,2583.7,2583.4,1.5989]
[1727006437328,1.21726947,2583.7,2583.4,5.46974]
[1727006437958,0.1480817,2583.6,2583.4,5.46974]
[1727006441944,0.1480817,2583.6,2583.5,3.87071]
[1727006444387,0.1480817,2583.6,2583.4,1.5989]
[1727006444551,0.1480817,2583.6,2583.4,5.46971]
[1727006444974,0.1480817,2583.6,2583.5,3.87071]
[1727006448154,0.1480817,2583.6,2583.5,6.403657]
[1727006448497,1.21739904,2583.8,2583.7,3.87041]
[1727006448803,0.14801964,2583.8,2583.7,5.54670962]
[1727006448981,1.21739904,2584.2,2584.1,3.86981]
[1727006449156,1.21739904,2584.3,2584.2,3.86966]
[1727006449351,1.21739904,2584.3,2584.1,5.46871]
[1727006449352,1.21739904,2584.3,2584.1,9.33852]
[1727006449659,1.21739904,2584.3,2584.2,3.86966]
[1727006450299,1.21739904,2584.3,2584.1,5.46862]
[1727006450651,1.21739904,2584.2,2584.1,5.46862]
[1727006451553,1.21739904,2584.3,2584.1,5.46862]
[1727006451759,1.21739904,2584.2,2584.1,5.46862]
[1727006452762,0.14383621,2584.2,2584.1,5.46862]
[1727006452981,1.21739904,2584.3,2584.1,5.46862]
[1727006453189,0.1438624,2584.2,2584.1,5.46862]
[1727006453381,1.21739904,2584.3,2584.1,5.46862]
[1727006453584,0.1438726,2584.2,2584.1,5.46862]
[1727006453807,1.21739904,2584.3,2584.1,5.46862]
[1727006453972,0.14383616,2584.2,2584.1,5.46862]
[1727006454494,0.1438318,2584.2,2584.1,5.46862]
[1727006454885,1.21739904,2584.3,2584.1,5.46862]
[1727006455083,0.1438318,2584.2,2584.1,5.46862]
[1727006455502,1.21739904,2584.4,2584.1,5.46862]
[1727006455704,0.14407739,2584.2,2584.1,5.46862]
[1727006455871,0.14408759,2584.2,2584.1,5.46862]
[1727006456294,1.21739904,2584.3,2584.1,5.46862]
[1727006456611,0.1438726,2584.2,2584.1,5.46862]
[1727006456812,1.21739904,2584.3,2584.1,5.46862]
[1727006457113,0.1438726,2584.2,2584.1,5.46862]
[1727006457614,0.1438318,2584.2,2584.1,5.46862]
[1727006457781,1.21739904,2584.3,2584.1,9.33836]
[1727006457983,1.21739904,2584.3,2584.2,3.86966]
[1727006459687,1.62319872,2584.4,2584.3,3.86951]
[1727006459688,1.21739904,2584.4,2584.3,3.86951]
[1727006462416,1.21739904,2584.4,2584.2,7.73932]
[1727006462587,1.21739904,2584.4,2584.2,3.86966]
[1727006463823,1.21739904,2584.4,2584.3,3.86951]
[1727006464516,1.21739904,2584.4,2584.3,6.242327]
[1727006465023,1.62319872,2584.6,2584.4,3.86937]
[1727006465218,1.21631011,2584.5,2584.4,3.86937]
[1727006465423,1.21631011,2584.5,2584.3,9.33792]
[1727006465638,1.21627339,2584.4,2584.3,5.46841]
[1727006467588,0.14397972,2584.4,2584.3,5.46841]
[1727006471744,0.14397972,2584.4,2584.3,6.47959714]
[1727006471939,0.14397972,2584.4,2584.3,6.402217]
[1727006472254,1.21627339,2584.9,2584.8,1.5989]
[1727006472459,1.21627339,2585.1,2585.0,3.86847]
[1727006472617,1.62319872,2585.3,2584.8,5.46753]
[1727006472618,0.14431294,2584.9,2584.8,5.46753]
[1727006472827,1.21627339,2585.2,2584.9,3.86854]
[1727006473443,1.21627339,2585.3,2584.9,3.86854]
[1727006473621,1.21627339,2585.2,2584.9,7.73708]
[1727006474145,1.21627339,2585.3,2584.9,7.73708]
[1727006474317,1.21627339,2585.3,2585.0,3.86846]
[1727006474523,3.51157339,2585.4,2585.0,3.86846]
[1727006474829,4.6142805,2585.4,2585.0,3.86846]
[1727006475350,4.6142805,2585.4,2584.9,3.9458983]
[1727006475351,4.6142805,2585.4,2584.9,3.86854]
[1727006475847,1.21627339,2585.3,2584.9,3.86854]
[1727006476341,7.26591711,2585.4,2584.9,3.86853]
[1727006476342,4.6142805,2585.4,2584.9,3.86853]
[1727006477747,3.51157339,2585.4,2584.9,3.86853]
[1727006478049,7.37952339,2585.4,2584.9,3.86853]
[1727006478265,7.37952339,2585.4,2584.8,5.46765]
[1727006478434,7.37952339,2585.4,2584.9,3.86855]
[1727006479257,6.16325,2585.4,2584.9,3.86855]
[1727006480574,3.86803,2585.3,2584.8,1.5989]
[1727006480873,3.86803,2585.3,2584.9,0.546767]
[1727006482860,0.14487954,2585.2,2584.9,4.415377]
[1727006483067,6.16325,2585.4,2584.9,4.415377]
[1727006483218,0.14480125,2585.1,2584.9,4.415377]
[1727006483423,6.16325,2585.4,2584.9,4.415377]
[1727006483666,0.1447618,2585.0,2584.9,4.415377]
[1727006483893,6.16325,2585.4,2584.9,4.415377]
[1727006484044,0.14476009,2585.0,2584.9,3.86861]
[1727006484241,6.16325,2585.4,2584.9,3.86861]
[1727006484569,0.1447618,2585.0,2584.9,3.86861]
[1727006484763,9.35857872,2585.6,2585.0,9.33575]
[1727006484764,7.33764339,2585.6,2585.0,9.33575]
[1727006484964,3.86787,2585.4,2585.0,1.5989]
[1727006488453,3.86787,2585.4,2585.0,5.46736]
[1727006488672,7.33763339,2585.6,2585.0,6.400851]
[1727006488843,7.33763339,2585.6,2585.1,0.0773519]
[1727006488844,11.20530339,2585.6,2585.1,0.0773519]
[1727006489193,6.12136,2585.6,2585.1,0.0773519]
[1727006489351,9.98905,2585.6,2585.1,0.0773519]
[1727006490057,3.86773,2585.5,2585.1,0.0773519]
[1727006490264,3.86794,2585.4,2585.0,1.5989]
[1727006490589,3.86772,2585.5,2585.0,5.46734]
[1727006491391,5.08399339,2585.5,2585.0,5.46734]
[1727006492086,3.86795,2585.4,2585.0,1.5989]
[1727006494482,5.08422339,2585.4,2585.0,1.5989]
[1727006497307,3.86803,2585.3,2585.0,1.5989]
[1727006497593,0.14489155,2585.2,2585.0,1.5989]
[1727006497752,3.86818,2585.2,2584.8,8.46764]
[1727006497953,0.14484833,2585.1,2584.8,8.46764]
[1727006498555,7.43486339,2585.3,2584.8,8.46764]
[1727006498796,0.14488778,2585.2,2584.8,8.46764]
[1727006498954,7.43486339,2585.3,2584.8,12.33634]
[1727006499298,0.14488778,2585.2,2584.9,3.94597862]
[1727006499650,5.08436339,2585.3,2584.9,3.86862]
[1727006499851,0.14483587,2585.1,2584.9,3.86862]
[1727006500056,5.08436339,2585.3,2584.9,3.86862]
[1727006500257,0.14479642,2585.0,2584.9,6.86862]
[1727006500482,1.21627339,2585.5,2585.1,3.8683]
[1727006500706,1.21627339,2585.6,2585.3,1.5989]
[1727006500920,0.8096739,2585.5,2585.4,0.07734724]
[1727006501282,0.8096739,2585.5,2585.3,5.46685]
[1727006501484,0.8096739,2585.5,2585.3,5.54419566]
[1727006501684,0.8096739,2585.5,2585.3,5.46685]
[1727006502199,0.8096739,2585.6,2585.3,5.46685]
[1727006502604,0.8096739,2585.6,2585.3,5.46684]
[1727006502804,0.8096739,2585.5,2585.3,5.46684]
[1727006502974,0.8096739,2585.6,2585.3,5.46684]
[1727006506489,0.8096739,2585.5,2585.3,5.46684]
[1727006506699,0.8096739,2585.6,2585.3,5.46684]
[1727006507185,0.8096739,2585.5,2585.3,5.46684]
[1727006507511,0.8096739,2585.6,2585.3,5.46684]
[1727006508614,0.8096739,2585.5,2585.3,5.54418553]
[1727006508911,0.8096739,2585.5,2585.3,5.54417553]
[1727006509285,0.8096739,2585.5,2585.3,9.41210553]
[1727006509512,0.8096739,2585.6,2585.3,9.33476]
[1727006509931,0.8096739,2585.6,2585.3,5.46683]
[1727006510091,0.8096739,2585.6,2585.3,5.54416489]
[1727006510412,0.8096739,2585.5,2585.3,9.41210489]
[1727006510579,0.8096739,2585.5,2585.3,5.46682]
[1727006510780,0.8096739,2585.5,2585.3,5.54416536]
[1727006512603,0.13745773,2585.4,2585.3,9.41210536]
[1727006512921,0.13745773,2585.4,2585.3,10.27597054]
[1727006515394,0.13745773,2585.4,2585.3,6.40803054]
[1727006515601,0.94713163,2585.4,2585.3,5.46682]
[1727006517198,0.94857652,2585.4,2585.3,5.46682]
[1727006517531,0.13745773,2585.4,2585.3,5.46682]
[1727006518231,1.35373112,2585.4,2585.3,5.46682]
[1727006518532,0.13745773,2585.4,2585.3,6.400318]
[1727006520661,1.35373112,2585.4,2585.2,3.86816]
[1727006520862,0.81132928,2585.3,2585.2,7.73632]
[1727006521174,0.94885165,2585.3,2585.2,7.73632]
[1727006522233,0.13752237,2585.3,2585.2,7.81367116]
[1727006522446,0.94885165,2585.3,2585.2,8.75492828]
[1727006522643,0.94885165,2585.3,2585.2,10.27647712]
[1727006522859,0.13752237,2585.3,2585.2,10.27647712]
[1727006523455,0.13752237,2585.3,2585.2,13.27647712]
[1727006523773,0.81132928,2585.6,2585.5,3.86772]
[1727006523995,0.81132928,2585.7,2585.6,3.86757]
[1727006524186,1.21627339,2585.8,2585.6,3.86757]
[1727006524329,0.81109434,2585.7,2585.6,3.86757]
[1727006524761,1.21627339,2585.8,2585.6,3.86757]
[1727006525337,1.21627339,2585.7,2585.5,3.86772]
[1727006525536,0.8110369,2585.6,2585.5,3.86772]
[1727006528078,0.94417915,2585.6,2585.5,3.86772]
[1727006528787,0.13314225,2585.6,2585.5,9.40780332]
[1727006531560,0.13314225,2585.6,2585.5,7.80890332]
[1727006531561,0.94417915,2585.6,2585.5,7.80890332]
[1727006531753,0.94417915,2585.6,2585.5,6.86772]
[1727006531948,0.13314225,2585.6,2585.5,6.86772]
[1727006532463,0.94417915,2585.6,2585.5,6.94506197]
[1727006533593,0.13314225,2585.6,2585.5,6.94506197]
[1727006539601,0.13314225,2585.6,2585.5,8.94506197]
[1727006539771,0.13314225,2585.6,2585.5,10.3089032]
[1727006540604,0.13314225,2585.6,2585.5,11.9078032]
[1727006541012,0.81080629,2585.9,2585.8,3.86727]
[1727006541570,1.21627339,2586.0,2585.9,3.86712]
[1727006541571,0.81080629,2586.0,2585.9,3.86712]
[1727006541768,1.21627339,2586.1,2586.0,3.86697]
[1727006542305,4.49310105,2586.2,2586.0,3.86697]
[1727006542808,1.34953681,2586.1,2586.0,3.86697]
[1727006543169,0.13344537,2586.1,2586.0,3.86697]
[1727006544298,1.34969351,2586.1,2586.0,3.86697]
[1727006546108,2.4273,2586.0,2585.8,3.86716]
[1727006546409,1.21646593,2585.9,2585.8,3.86716]
[1727006546567,1.3499887,2585.9,2585.8,3.86716]
[1727006546765,1.3499887,2585.9,2585.7,3.86741]
[1727006547006,0.81098719,2585.8,2585.7,3.86741]
[1727006547170,1.21646593,2585.8,2585.7,3.86741]
[1727006547366,1.34982146,2585.8,2585.7,3.86741]
[1727006552637,2.4273,2585.7,2585.5,6.86769]
[1727006552819,3.64401184,2585.7,2585.5,3.0]
[1727006553128,1.35005656,2585.6,2585.5,3.0]
[1727006553917,1.35005656,2585.6,2585.3,3.86793]
[1727006554115,3.64401184,2585.5,2585.1,3.86824]
[1727006554316,3.64401184,2585.5,2585.1,3.86823]
[1727006554317,0.81127838,2585.3,2585.1,3.86823]
[1727006554557,0.81127838,2585.3,2585.1,7.73647]
[1727006554719,0.94433893,2585.2,2585.1,7.73647]
[1727006554902,0.94433893,2585.2,2585.1,3.86823]
[1727006556010,0.94433893,2585.2,2585.1,6.86823]
[1727006560146,0.94433893,2585.2,2585.1,3.86823]
[1727006560320,0.94433893,2585.2,2585.1,3.86832]
[1727006561353,0.94433893,2585.2,2585.1,4.8096229]
[1727006561512,0.94433893,2585.2,2585.1,7.8096229]
[1727006564413,0.13306055,2585.2,2585.1,7.8096229]
[1727006564815,0.81127838,2585.2,2585.1,7.8096229]
[1727006565125,0.94411349,2585.2,2585.1,7.8096229]
[1727006566145,0.13283511,2585.2,2585.1,7.8096229]
[1727006566347,3.16667838,2585.3,2585.1,7.8096229]
[1727006566651,0.94413388,2585.2,2585.1,7.8096229]
[1727006568355,0.94413388,2585.2,2585.1,6.86832]
[1727006570653,0.1328555,2585.2,2585.1,6.86832]
[1727006570818,0.94413388,2585.2,2585.1,6.86832]
[1727006571016,3.16667838,2585.3,2585.1,6.86832]
[1727006571358,0.12836637,2585.2,2585.1,6.86832]
[1727006571530,3.16667838,2585.3,2585.1,6.86832]
[1727006571848,0.12699049,2585.2,2585.1,6.86832]
[1727006572357,0.12700069,2585.2,2585.1,6.86832]
[1727006572542,3.16667838,2585.3,2585.1,6.86832]
[1727006572736,0.12700069,2585.2,2585.1,6.94567558]
[1727006572946,3.16667838,2585.3,2585.1,8.18697814]
[1727006573120,0.12701089,2585.2,2585.1,8.10962256]
[1727006573438,3.16667838,2585.3,2585.1,8.10962256]
[1727006573648,0.12698043,2585.2,2585.1,6.86832]
[1727006574019,3.16667838,2585.3,2585.1,6.86832]
[1727006574329,0.12698043,2585.2,2585.1,6.86832]
[1727006574668,3.16667838,2585.3,2585.1,6.86832]
[1727006574820,0.12699049,2585.2,2585.1,6.86832]
[1727006575341,0.12698793,2585.2,2585.1,6.86832]
[1727006575554,3.16667838,2585.3,2585.1,6.86832]
[1727006575758,0.12698793,2585.2,2585.1,6.86832]
[1727006576171,3.16667838,2585.3,2585.1,6.86832]
[1727006576371,0.12699812,2585.2,2585.1,6.94567563]
[1727006576574,0.12699812,2585.2,2585.1,8.18697819]
[1727006576783,0.81127838,2585.4,2585.2,3.86817]
[1727006577079,0.81127838,2585.4,2585.3,3.86802]
[1727006577247,0.81127838,2585.5,2585.4,3.86787]
[1727006578443,0.81045748,2585.5,2585.4,3.86787]
[1727006578844,0.81044881,2585.5,2585.4,3.86787]
[1727006579057,0.81045688,2585.5,2585.4,3.86787]
[1727006579941,0.81045172,2585.5,2585.4,3.86787]
[1727006580143,0.8104637,2585.5,2585.4,3.86787]
[1727006582154,0.81047143,2585.5,2585.4,3.86787]
[1727006582351,1.21671184,2585.6,2585.4,3.86787]
[1727006582562,0.81048066,2585.5,2585.4,3.86787]
[1727006583098,1.21671184,2585.5,2585.4,3.86787]
[1727006583242,1.21671184,2585.5,2585.3,3.86801]
[1727006583439,0.81050696,2585.4,2585.3,3.86801]
[1727006585978,0.81050696,2585.4,2585.1,10.73652]
[1727006586181,3.12420696,2585.3,2585.1,3.0]
[1727006586341,0.81050696,2585.2,2585.1,3.0]
[1727006587743,0.93751022,2585.2,2585.1,3.0]
[1727006589448,1.3437151,2585.2,2585.1,3.0]
[1727006589646,0.12700326,2585.2,2585.1,3.0]
[1727006589845,1.21671184,2585.2,2585.0,5.0]
[1727006590050,6.18202,2585.1,2585.0,5.0]
[1727006590345,4.06260833,2585.1,2585.0,5.0]
[1727006591510,2.44065375,2585.1,2585.0,5.0]
[1727006591716,4.06289314,2585.1,2585.0,5.0]
[1727006592381,4.06289249,2585.1,2585.0,5.0]
[1727006592700,4.06290601,2585.1,2585.0,5.0]
[1727006593278,4.4679638,2585.1,2585.0,5.0]
[1727006594119,2.44065375,2585.1,2585.0,5.0]
[1727006596819,10.20637447,2585.1,2585.0,0.60661417]
[1727006597029,12.04064871,2585.1,2585.0,0.60661417]
[1727006597190,14.87964511,2585.1,2585.0,0.60661417]
[1727006598017,9.26717702,2585.1,2585.0,0.60661417]
[1727006598179,13.04537087,2585.1,2585.0,0.60661417]
[1727006599883,12.97246025,2585.1,2585.0,0.60661417]
[1727006600287,10.13285187,2585.1,2585.0,0.60661417]
[1727006600504,12.97246025,2585.1,2585.0,0.60661417]
[1727006602820,10.13285187,2585.1,2585.0,0.60661417]
[1727006603125,12.97246025,2585.1,2585.0,0.60661417]
[1727006604779,12.9710552,2585.1,2585.0,0.60661417]
[1727006605181,10.13216682,2585.1,2585.0,0.60661417]
[1727006606630,12.9710552,2585.1,2585.0,0.60661417]
[1727006607784,10.13216682,2585.1,2585.0,0.60661417]
[1727006608492,7.35869513,2585.1,2585.0,0.60661417]
[1727006608690,10.13216682,2585.1,2585.0,0.60661417]
[1727006609692,7.81846682,2585.1,2585.0,0.60661417]
[1727006609894,5.04465523,2585.1,2585.0,0.60661417]
[1727006614898,5.04470907,2585.1,2585.0,0.60661417]
[1727006616824,5.04470907,2585.1,2584.8,6.90947173]
[1727006616993,7.35092098,2585.0,2584.8,6.90947173]
[1727006617198,4.91775532,2584.9,2584.8,6.90947173]
[1727006617536,5.04449599,2584.9,2584.8,6.90947173]
[1727006617731,5.04449599,2584.9,2584.8,3.04079173]
[1727006618101,7.47766165,2584.9,2584.8,3.04079173]
[1727006618295,5.04449599,2584.9,2584.8,3.04079173]
[1727006618501,7.47766165,2584.9,2584.8,3.04079173]
[1727006618695,5.04449599,2584.9,2584.7,3.86888]
[1727006618932,4.91775532,2584.8,2584.7,3.86888]
[1727006619306,5.04445653,2584.8,2584.7,3.86888]
[1727006622018,5.04445653,2584.8,2584.6,5.46783]
[1727006622240,4.91775532,2584.7,2584.5,6.86912]
[1727006622437,6.94561536,2584.6,2584.5,6.86912]
[1727006622623,7.07224401,2584.6,2584.5,6.86912]
[1727006622951,5.04438397,2584.6,2584.5,6.86912]
[1727006624106,5.04438397,2584.6,2584.5,3.86912]